fUST/lending_fUST_20250406
["ID","MTS","AMOUNT","RATE_DAILY","PERIOD"]
[357226967,1743922248898,-3000.0,0.0002319,2]
[357226969,1743922248908,-2000.0,0.000232,2]
[357226971,1743922248917,-2000.0,0.000232,2]
[357226973,1743922248926,-2000.0,0.000232,2]
[357226975,1743922248936,-2000.0,0.000232,2]
[357226977,1743922248945,-2000.0,0.000232,2]
[357226979,1743922248955,-2000.0,0.000232,2]
[357226981,1743922248964,-2000.0,0.000232,2]
[357226983,1743922248973,-2000.0,0.000232,2]
[357226985,1743922248982,-2000.0,0.000232,3]
[357226987,1743922248992,-4802.841845,0.000232,2]
[357226989,1743922249002,-151.0,0.000232,10]
[357226991,1743922249011,-991.67284,0.000232,7]
[357226993,1743922249021,-991.67284,0.000232,7]
[357226995,1743922249031,-327.74650863,0.00023205,2]
[357226997,1743922249040,-233.80463783,0.00023205,2]
[357226999,1743922249050,-207.4,0.00023273,2]
[357227001,1743922249060,-219.97214,0.00023287,7]
[357227003,1743922249069,-500.0,0.00023287,2]
[357227005,1743922249079,-500.0,0.00023287,2]
[357227007,1743922249089,-500.0,0.00023287,2]
[357227009,1743922249098,-500.0,0.00023287,2]
[357227011,1743922249107,-500.0,0.00023287,2]
[357227013,1743922249117,-500.0,0.00023287,2]
[357227015,1743922249127,-500.0,0.00023287,2]
[357227017,1743922249136,-500.0,0.00023287,2]
[357227019,1743922249145,-500.0,0.00023287,2]
[357227021,1743922249155,-500.0,0.00023287,2]
[357227023,1743922249164,-500.0,0.00023287,2]
[357227025,1743922249173,-500.0,0.00023287,2]
[357227027,1743922249183,-500.0,0.00023287,2]
[357227029,1743922249192,-6134.97,0.00023287,2]
[357227031,1743922249203,-500.0,0.00023287,2]
[357227033,1743922249213,-647.3,0.00023287,2]
[357227035,1743922249223,-500.0,0.00023287,2]
[357227037,1743922249232,-611.44,0.00023287,2]
[357227040,1743922249242,-500.0,0.00023287,2]
[357227042,1743922249252,-500.0,0.00023287,2]
[357227044,1743922249261,-500.0,0.00023287,2]
[357227046,1743922249271,-8442.11,0.00023287,2]
[357227048,1743922249281,-500.0,0.00023287,2]
[357227050,1743922249290,-500.0,0.00023287,2]
[357227052,1743922249300,-823.49,0.00023287,2]
[357227054,1743922249310,-500.0,0.00023287,2]
[357227056,1743922249319,-500.0,0.00023287,2]
[357227058,1743922249329,-452.1,0.00023287,2]
[357227060,1743922249339,-500.0,0.00023287,2]
[357227062,1743922249351,-500.0,0.00023287,2]
[357227064,1743922249361,-476.82,0.00023287,2]
[357227066,1743922249371,-500.0,0.00023287,2]
[357227068,1743922249381,-500.0,0.00023287,2]
[357227070,1743922249391,-500.0,0.00023287,2]
[357227071,1743922249401,-2868.76,0.00023287,2]
[357227074,1743922249410,-500.0,0.00023287,2]
[357227076,1743922249420,-500.0,0.00023287,2]
[357227078,1743922249430,-1671.74,0.00023287,2]
[357227080,1743922249440,-500.0,0.00023287,2]
[357227082,1743922249450,-500.0,0.00023287,2]
[357227084,1743922249460,-500.0,0.00023287,2]
[357227086,1743922249470,-500.0,0.00023287,2]
[357227088,1743922249479,-500.0,0.00023287,2]
[357227090,1743922249489,-204.07,0.00023287,2]
[357227092,1743922249499,-500.0,0.00023287,2]
[357227094,1743922249507,-500.0,0.00023287,2]
[357227096,1743922249517,-327.74650863,0.00023315,2]
[357227098,1743922249526,-233.80463783,0.00023315,2]
[357227099,1743922249536,-153.214,0.00023391,2]
[357227101,1743922249545,-401.0,0.00023391,2]
[357227103,1743922249555,-151.0,0.000234,7]
[357227104,1743922249564,-327.74650863,0.00023425,2]
[357227105,1743922249574,-233.80463783,0.00023425,2]
[357227106,1743922249583,-327.74650863,0.00023534,2]
[357227107,1743922249593,-233.80463783,0.00023534,2]
[357227108,1743922249602,-151.0,0.00023561,7]
[357227109,1743922249612,-500.0,0.00023561,2]
[357227110,1743922249622,-991.67284,0.00023561,7]
[357227111,1743922249631,-991.672838,0.00023561,7]
[357227112,1743922249641,-483.39,0.00023561,2]
[357227113,1743922249650,-296.86,0.00023561,2]
[357227115,1743922249660,-500.0,0.00023561,2]
[357227117,1743922249669,-467.59,0.00023561,2]
[357227119,1743922249678,-376.54,0.00023561,2]
[357227121,1743922249688,-500.0,0.00023561,2]
[357227123,1743922249698,-500.0,0.00023561,2]
[357227125,1743922249708,-6134.97,0.00023561,2]
[357227127,1743922249718,-500.0,0.00023561,2]
[357227129,1743922249727,-647.3,0.00023561,2]
[357227131,1743922249736,-500.0,0.00023561,2]
[357227133,1743922249745,-500.0,0.00023561,2]
[357227135,1743922249755,-500.0,0.00023561,2]
[357227137,1743922249764,-500.0,0.00023561,2]
[357227139,1743922249774,-8442.11,0.00023561,2]
[357227141,1743922249785,-500.0,0.00023561,2]
[357227143,1743922249794,-500.0,0.00023561,2]
[357227145,1743922249803,-823.49,0.00023561,2]
[357227147,1743922249813,-500.0,0.00023561,2]
[357227149,1743922249822,-617.84653826,0.00023561,2]
[357227151,1743922249831,-500.0,0.00023561,2]
[357227153,1743922249840,-500.0,0.00023561,2]
[357227155,1743922249849,-500.0,0.00023561,2]
[357227157,1743922249859,-500.0,0.00023561,2]
[357227159,1743922249869,-500.0,0.00023561,2]
[357227161,1743922249878,-2868.76,0.00023561,2]
[357227163,1743922249888,-500.0,0.00023561,2]
[357227165,1743922249897,-500.0,0.00023561,2]
[357227167,1743922249907,-1671.74,0.00023561,2]
[357227169,1743922249917,-500.0,0.00023561,2]
[357227171,1743922249927,-500.0,0.00023561,2]
[357227173,1743922249936,-500.0,0.00023561,2]
[357227175,1743922249946,-500.0,0.00023561,2]
[357227177,1743922249956,-500.0,0.00023561,2]
[357227179,1743922249966,-500.0,0.00023561,2]
[357227181,1743922249975,-500.0,0.00023561,2]
[357227183,1743922249985,-151.0,0.000236,7]
[357227185,1743922249995,-1701.6175302,0.00023637,2]
[357227187,1743922250004,-327.74650863,0.00023644,2]
[357227189,1743922250013,-233.80463783,0.00023644,2]
[357227191,1743922250023,-100306.54924378,0.0002375,2]
[357227193,1743922250033,-219.97214,0.0002375,7]
[357227195,1743922250042,-219.97214,0.0002375,7]
[357227197,1743922250051,-151.0,0.0002375,7]
[357227200,1743922250061,-327.74650863,0.00023753,2]
[357227201,1743922250071,-233.80463783,0.00023753,2]
[357227204,1743922250081,-4042.88143948,0.00023762,4]
[357227206,1743922250090,-500.0,0.00023835,2]
[357227208,1743922250099,-411.02,0.00023835,2]
[357227210,1743922250109,-500.0,0.00023835,2]
[357227212,1743922250119,-6134.97,0.00023835,2]
[357227213,1743922250128,-330.61,0.00023835,2]
[357227215,1743922250138,-647.3,0.00023835,2]
[357227217,1743922250147,-500.0,0.00023835,2]
[357227219,1743922250156,-500.0,0.00023835,2]
[357227221,1743922250166,-8442.11,0.00023835,2]
[357227223,1743922250175,-500.0,0.00023835,2]
[357227225,1743922250184,-500.0,0.00023835,2]
[357227227,1743922250194,-823.49,0.00023835,2]
[357227229,1743922250204,-500.0,0.00023835,2]
[357227231,1743922250213,-500.0,0.00023835,2]
[357227233,1743922250223,-621.24,0.00023835,2]
[357227235,1743922250232,-500.0,0.00023835,2]
[357227237,1743922250242,-500.0,0.00023835,2]
[357227239,1743922250251,-2868.76,0.00023835,2]
[357227241,1743922250261,-500.0,0.00023835,2]
[357227243,1743922250272,-500.0,0.00023835,2]
[357227245,1743922250282,-1671.74,0.00023835,2]
[357227247,1743922250292,-500.0,0.00023835,2]
[357227249,1743922250302,-500.0,0.00023835,2]
[357227251,1743922250312,-500.0,0.00023835,2]
[357227253,1743922250322,-500.0,0.00023835,2]
[357227255,1743922250332,-500.0,0.00023835,2]
[357227257,1743922250342,-467.64,0.00023835,2]
[357227260,1743922250355,-500.0,0.00023864,2]
[357227262,1743922250364,-12500.0,0.00023882,3]
[357227264,1743922250373,-12500.0,0.00023891,3]
[357227266,1743922250384,-12500.0,0.000239,3]
[357227268,1743922250395,-755.51,0.00024,2]
[357227270,1743922250405,-500.0,0.0002403,2]
[357227272,1743922250414,-6134.97,0.00024109,2]
[357227274,1743922250426,-647.3,0.00024109,2]
[357227276,1743922250435,-500.0,0.00024109,2]
[357227278,1743922250445,-551.99,0.00024109,2]
[357227280,1743922250455,-8442.11,0.00024109,2]
[357227282,1743922250464,-510.48,0.00024109,2]
[357227284,1743922250474,-823.49,0.00024109,2]
[357227286,1743922250483,-500.0,0.00024109,2]
[357227288,1743922250493,-500.0,0.00024109,2]
[357227290,1743922250502,-500.0,0.00024109,2]
[357227292,1743922250511,-2868.76,0.00024109,2]
[357227294,1743922250521,-500.0,0.00024109,2]
[357227296,1743922250531,-500.0,0.00024109,2]
[357227298,1743922250541,-1671.74,0.00024109,2]
[357227300,1743922250552,-450.95,0.00024109,2]
[357227302,1743922250561,-500.0,0.00024109,2]
[357227304,1743922250571,-500.0,0.00024109,2]
[357227306,1743922250580,-500.0,0.00024109,2]
[357227308,1743922250590,-160.0,0.00024174,3]
[357227310,1743922250599,-161.08789774,0.00024174,5]
[357227321,1743922250693,-4042.88143948,0.00024383,5]
[357227323,1743922250703,-6134.97,0.00024383,2]
[357227325,1743922250713,-647.3,0.00024383,2]
[357227327,1743922250723,-8442.11,0.00024383,2]
[357227329,1743922250732,-823.49,0.00024383,2]
[357227331,1743922250741,-500.0,0.00024383,2]
[357227333,1743922250751,-515.14,0.00024383,2]
[357227335,1743922250759,-500.0,0.00024383,2]
[357227337,1743922250769,-2868.76,0.00024383,2]
[357227339,1743922250778,-500.0,0.00024383,2]
[357227341,1743922250787,-500.0,0.00024383,2]
[357227343,1743922250798,-1671.74,0.00024383,2]
[357227345,1743922250807,-500.0,0.00024383,2]
[357227347,1743922250816,-563.43,0.00024383,2]
[357227349,1743922250826,-500.0,0.00024383,2]
[357227351,1743922250836,-600.0,0.00024429,2]
[357227353,1743922250846,-215.0738,0.00024642,2]
[357227355,1743922250855,-219.97214,0.00024657,7]
[357227357,1743922250865,-219.97214,0.00024657,7]
[357227359,1743922250875,-151.0,0.00024657,7]
[357227361,1743922250884,-6134.97,0.00024657,2]
[357227363,1743922250893,-647.3,0.00024657,2]
[357227365,1743922250903,-8442.11,0.00024657,2]
[357227367,1743922250913,-823.49,0.00024657,2]
[357227369,1743922250923,-500.0,0.00024657,2]
[357227371,1743922250932,-500.0,0.00024657,2]
[357227373,1743922250942,-2868.76,0.00024657,2]
[357227375,1743922250952,-500.0,0.00024657,2]
[357227377,1743922250962,-500.0,0.00024657,2]
[357227379,1743922250972,-1671.74,0.00024657,2]
[357227381,1743922250982,-500.0,0.00024657,2]
[357227382,1743922250991,-150.286252,0.00024658,2]
[357227384,1743922251002,-150.18920911,0.00024658,2]
[357227386,1743922251012,-150.19203236,0.00024658,2]
[357227388,1743922251021,-500.0,0.00024658,2]
[357227390,1743922251031,-500.0,0.00024658,2]
[357227392,1743922251040,-500.0,0.00024658,2]
[357227394,1743922251049,-500.0,0.00024658,2]
[357227395,1743922251058,-500.0,0.00024658,2]
[357227397,1743922251068,-500.0,0.00024658,2]
[357227399,1743922251078,-500.0,0.00024658,2]
[357227401,1743922251087,-253.51561399,0.00024658,2]
[357227403,1743922251097,-500.0,0.00024658,2]
[357227404,1743922251106,-500.0,0.00024658,2]
[357227406,1743922251116,-500.0,0.00024658,2]
[357227408,1743922251126,-500.0,0.00024658,2]
[357227410,1743922251135,-500.0,0.00024658,2]
[357227412,1743922251145,-500.0,0.00024658,2]
[357227413,1743922251154,-500.0,0.00024658,2]
[357227415,1743922251164,-500.0,0.00024658,2]
[357227417,1743922251173,-500.0,0.00024658,2]
[357227419,1743922251183,-500.0,0.00024658,2]
[357227421,1743922251192,-500.0,0.00024658,2]
[357227423,1743922251202,-250.0,0.00024658,2]
[357227425,1743922251211,-500.0,0.00024658,2]
[357227426,1743922251221,-500.0,0.00024658,2]
[357227428,1743922251230,-150.55325932,0.00024658,2]
[357227430,1743922251240,-150.40948026,0.00024658,2]
[357227432,1743922251249,-500.0,0.00024658,2]
[357227434,1743922251259,-152.91313506,0.00024658,2]
[357227435,1743922251268,-500.0,0.00024658,2]
[357227437,1743922251278,-216.77481048,0.00024658,2]
[357227439,1743922251288,-150.77571563,0.00024658,2]
[357227441,1743922251297,-150.1536178,0.00024658,2]
[357227443,1743922251307,-150.21865068,0.00024658,2]
[357227444,1743922251316,-150.53968718,0.00024658,2]
[357227446,1743922251326,-150.08,0.00024658,2]
[357227448,1743922251335,-500.0,0.00024658,2]
[357227450,1743922251344,-500.0,0.00024658,2]
[357227452,1743922251358,-150.08,0.00024658,2]
[357227454,1743922251368,-150.97363154,0.00024658,2]
[357227455,1743922251378,-500.0,0.00024658,2]
[357227457,1743922251387,-150.16602201,0.00024658,2]
[357227459,1743922251398,-150.6252677,0.00024658,2]
[357227461,1743922251409,-150.08,0.00024658,2]
[357227463,1743922251418,-150.74899697,0.00024658,2]
[357227465,1743922251428,-600.0,0.00024684,2]
[357227466,1743922251438,-23016.47856271,0.00024701,2]
[357227468,1743922251448,-46253.36198467,0.0002475,2]
[357227470,1743922251459,-500.0,0.00024795,2]
[357227472,1743922251468,-500.0,0.00024795,2]
[357227474,1743922251478,-200.82640572,0.00024795,2]
[357227476,1743922251488,-500.0,0.00024795,2]
[357227478,1743922251497,-500.0,0.00024795,2]
[357227479,1743922251507,-500.0,0.00024795,2]
[357227481,1743922251516,-284.20064512,0.00024795,2]
[357227483,1743922251526,-15034.6596173,0.00024796,2]
[357227485,1743922251536,-198.2,0.000248,2]
[357227487,1743922251545,-168.07862726,0.00024889,30]
[357227489,1743922251555,-2000.0,0.000249,2]
[357227491,1743922251565,-151.0,0.000249,7]
[357227493,1743922251574,-151.0,0.000249,7]
[357227495,1743922251583,-402230.74951984,0.000249,2]
[357227500,1743922251633,-705.93763268,0.000249,2]
[357227502,1743922251644,-21076.82257348,0.000249,2]
[357227504,1743922251655,-1457.87596726,0.00024931,2]
[357227529,1743922251902,-0.00145015,0.00021917,2]
[357227542,1743922252031,-505.32586855,0.00021917,2]
[357227544,1743922252041,-47.37870839,0.00024931,2]
[357228806,1743922590456,-340.4814782,0.000207,2]
[357228807,1743922611561,1242.8,0.00023,10]
[357228809,1743922726608,-150.0,0.00045648,31]
[357228810,1743922726634,-156.0,0.00045648,31]
[357228811,1743922726660,-312.0,0.00045648,31]
[357228812,1743922726685,-623.0,0.00045648,31]
[357228813,1743922726710,-787.0,0.00045648,31]
[357228814,1743922726734,-1212.0,0.00045648,31]
[357228815,1743922726759,-1246.0,0.00045648,31]
[357228816,1743922726786,-1924.0,0.00045648,31]
[357228817,1743922726814,-150.0,0.00045648,31]
[357228818,1743922726840,-166.0,0.00045648,31]
[357228819,1743922726866,-331.0,0.00045648,31]
[357228820,1743922726893,-663.0,0.00045648,31]
[357228821,1743922726918,-836.0,0.00045648,31]
[357228822,1743922726943,-1289.0,0.00045648,31]
[357228823,1743922726967,-1325.0,0.00045648,31]
[357228824,1743922726991,-2046.0,0.00045648,31]
[357228825,1743922727017,-150.0,0.00045648,31]
[357228826,1743922727042,-203.0,0.00045648,31]
[357228827,1743922727067,-407.0,0.00045648,31]
[357228828,1743922727092,-513.0,0.00045648,31]
[357228829,1743922727117,-791.0,0.00045648,31]
[357228830,1743922727143,-813.0,0.00045648,31]
[357228831,1743922727170,-1255.0,0.00045648,31]
[357228832,1743922727196,-150.0,0.00045648,31]
[357228833,1743922727222,-274.0,0.00045648,31]
[357228834,1743922727248,-548.0,0.00045648,31]
[357228835,1743922727277,-692.0,0.00045648,31]
[357228836,1743922727302,-1067.0,0.00045648,31]
[357228837,1743922727327,-1096.0,0.00045648,31]
[357228838,1743922727351,-1693.0,0.00045648,31]
[357228839,1743922727378,-2538.74,0.00045648,120]
[357228840,1743922727404,-2538.74,0.00045648,120]
[357228841,1743922727430,-2538.74,0.00045648,120]
[357228842,1743922727456,-2538.74,0.00045648,120]
[357228843,1743922727485,-2538.74,0.00045648,120]
[357228844,1743922727512,-2538.74,0.00045648,120]
[357228845,1743922727539,-2538.74,0.00045648,120]
[357228846,1743922727567,-2538.74,0.00045648,120]
[357228847,1743922727594,-2538.74,0.00045648,120]
[357228848,1743922727620,-2538.74,0.00045648,120]
[357228849,1743922727647,-2538.74,0.00045648,120]
[357228850,1743922727674,-2538.74,0.00045648,120]
[357228851,1743922727701,-2538.74,0.00045648,120]
[357228852,1743922727728,-2538.74,0.00045648,120]
[357228853,1743922727755,-2538.74,0.00045648,120]
[357228854,1743922727781,-2538.74,0.00045648,120]
[357228855,1743922727808,-2538.74,0.00045648,120]
[357228856,1743922727836,-2538.74,0.00045648,120]
[357228857,1743922727862,-2538.74,0.00045648,120]
[357228858,1743922727892,-2538.74,0.00045648,120]
[357228859,1743922727919,-2538.74,0.00045648,120]
[357228860,1743922727946,-2538.74,0.00045648,120]
[357228861,1743922727972,-2538.74,0.00045648,120]
[357228862,1743922727998,-2538.88134255,0.00045648,120]
[357228863,1743922728022,-469.8488518,0.00045648,45]
[357228864,1743922728048,-608.33830656,0.00045648,30]
[357228865,1743922728073,-1167.99569499,0.00045648,30]
[357228866,1743922728102,-2361.36575272,0.00045648,120]
[357228867,1743922728129,-498.999987,0.00045648,120]
[357228868,1743922728155,-904.17069197,0.00045648,120]
[357228869,1743922728181,-554.82567922,0.00045648,120]
[357228870,1743922728208,-679.5052436,0.00045648,120]
[357228871,1743922728234,-3208.58000186,0.00045648,30]
[357228872,1743922728260,-240.82074905,0.00045648,120]
[357228873,1743922728285,-935.27431907,0.00045648,120]
[357228874,1743922728311,-2000.0,0.00045648,120]
[357228875,1743922728337,-240.85949709,0.00045648,30]
[357228876,1743922728363,-1086.53591896,0.00045648,120]
[357228877,1743922728390,-937.8110149,0.00045648,120]
[357228878,1743922728416,-446.67875658,0.00045648,120]
[357228879,1743922728441,-994.61745523,0.00045648,120]
[357228880,1743922728468,-440.54438727,0.00045648,120]
[357228881,1743922728497,-2302.87721141,0.00045648,120]
[357228882,1743922728524,-421.10461494,0.00045648,120]
[357228883,1743922728550,-213.14690661,0.00045648,120]
[357228884,1743922728578,-239.08972034,0.00045648,120]
[357228885,1743922728603,-312.91785645,0.00045648,120]
[357228886,1743922728629,-201.14963023,0.00045648,120]
[357228887,1743922728655,-270.4,0.00045648,30]
[357228888,1743922728681,-270.4,0.00045648,30]
[357228889,1743922728709,-500.0,0.00045648,120]
[357228890,1743922728736,-577.36422603,0.00045648,120]
[357228891,1743922728763,-1276.45553173,0.00045648,30]
[357228892,1743922728789,-46315.58701765,0.00045648,120]
[357228893,1743922728815,-100000.0,0.00045648,31]
[357228894,1743922728841,-150.0,0.00045648,31]
[357228895,1743922729010,-1005.40071584,0.00045648,30]
[357228896,1743922729043,-1131.48920273,0.00045648,60]
[357228897,1743922729070,-404.36824638,0.00045648,60]
[357228898,1743922729097,-491.04053519,0.00045648,30]
[357228899,1743922729124,-1158.45355817,0.00045648,120]
[357228900,1743922729150,-300000.0,0.00045648,30]
[357228901,1743922729177,-5171.90764175,0.00045648,120]
[357228902,1743922729202,-1607.14231998,0.00045648,30]
[357228903,1743922729228,-2326.21272417,0.00045648,120]
[357228904,1743922729255,-40594.40228882,0.00045648,30]
[357228905,1743922729280,-251.931519,0.00045648,120]
[357228906,1743922729306,-5000.0,0.00045648,90]
[357228907,1743922729337,-5000.0,0.00045648,90]
[357228908,1743922729363,-300.0,0.00045648,30]
[357228909,1743922729390,-3018.65199,0.00045648,120]
[357228910,1743922729417,-2000.0,0.00045648,60]
[357228911,1743922729445,-151.18339394,0.00045648,60]
[357228912,1743922729471,-816.50266532,0.00045648,32]
[357228913,1743922729502,-20781.98024236,0.00045648,120]
[357228914,1743922729528,-955.1499072,0.00045648,120]
[357228915,1743922729554,-10000.0,0.00045648,120]
[357228916,1743922729581,-1468.8014124,0.00045648,120]
[357228917,1743922729612,-556.90040323,0.00045648,120]
[357228918,1743922729641,-1569.52464188,0.00045648,120]
[357228919,1743922729667,-239.0,0.00045648,31]
[357228920,1743922729693,-240.0,0.00045648,31]
[357228921,1743922729719,-1923.24879155,0.00045648,60]
[357228922,1743922729746,-2498.4818048,0.00045648,120]
[357228923,1743922729774,-1000.0,0.00045648,120]
[357228924,1743922729799,-1000.0,0.00045648,120]
[357228925,1743922729825,-651100.01396591,0.00045648,30]
[357228926,1743922729851,-150.0,0.00045648,120]
[357228927,1743922729877,-4119.87586656,0.00045648,120]
[357228928,1743922729903,-20000.0,0.00045648,40]
[357228929,1743922729928,-35000.0,0.00045648,40]
[357228930,1743922729955,-500.0,0.00045648,120]
[357228931,1743922729982,-500.0,0.00045648,120]
[357228932,1743922730008,-500.0,0.00045648,120]
[357228933,1743922730034,-500.0,0.00045648,120]
[357228934,1743922730060,-500.0,0.00045648,120]
[357228935,1743922730086,-558.81080923,0.00045648,120]
[357228936,1743922730111,-150.0,0.00045648,90]
[357228937,1743922730136,-298.0,0.00045648,30]
[357228938,1743922730161,-1314.14293602,0.00045648,32]
[357228939,1743922730186,-162410.6769723,0.00045648,120]
[357228940,1743922730211,-169.33030773,0.00045648,60]
[357228941,1743922730236,-14703.0,0.00045648,30]
[357228942,1743922730261,-2794.52863395,0.00045648,120]
[357228943,1743922730286,-783.15930115,0.00045648,120]
[357228944,1743922730310,-738.48831697,0.00045648,120]
[357228945,1743922730338,-1231.93760358,0.00045648,60]
[357228946,1743922730370,-216.54669439,0.00045648,60]
[357228947,1743922730405,-973.57471085,0.00045648,120]
[357228948,1743922730438,-771.4919127,0.00045648,30]
[357228949,1743922730466,-3150.85907134,0.00045648,30]
[357228950,1743922730502,-1930.18895174,0.00045648,30]
[357228951,1743922730533,-2370.61056125,0.00045648,120]
[357228952,1743922730564,-610.37543177,0.00045648,120]
[357228953,1743922730595,-995.81031617,0.00045648,120]
[357228954,1743922730625,-2800.10583081,0.00045648,120]
[357228955,1743922730658,-1009.98851155,0.00045648,120]
[357228956,1743922730692,-1641.49746949,0.00045648,60]
[357228957,1743922730722,-677.28802326,0.00045648,30]
[357228958,1743922730754,-621.20351867,0.00045648,30]
[357228959,1743922730784,-500.0,0.00045648,30]
[357228960,1743922730811,-501.22704001,0.00045648,30]
[357228961,1743922730842,-540.53113972,0.00045648,120]
[357228962,1743922730871,-2006.28732507,0.00045648,120]
[357228964,1743922750856,-241.72253076,0.00025141,100]
[357228965,1743922750895,-183.86,0.000264,31]
[357228966,1743922750924,-301.16732188,0.00027187,120]
[357228967,1743922750949,-497.08,0.000274,120]
[357228968,1743922750975,-200.0,0.00027822,120]
[357228969,1743922751001,-200.0,0.00028,30]
[357228970,1743922751026,-252.52,0.000285,30]
[357228971,1743922751051,-434.28,0.000285,30]
[357228972,1743922751076,-189.63,0.000287,30]
[357228973,1743922751102,-200.0,0.000292,120]
[357228974,1743922751128,-200.0,0.000292,120]
[357228975,1743922751153,-315.63933,0.000292,120]
[357228976,1743922751179,-249.15871,0.000294,120]
[357228977,1743922751204,-200.0,0.000294,120]
[357228978,1743922751230,-200.0,0.00029508,120]
[357228979,1743922751256,-200.0,0.00029828,120]
[357228980,1743922751283,-200.0,0.00029886,120]
[357228981,1743922751309,-2000.0,0.0003,60]
[357228982,1743922751335,-217.0,0.0003,120]
[357228983,1743922751359,-250.0,0.0003,30]
[357228984,1743922751384,-322.97,0.0003,30]
[357228985,1743922751410,-1547.72953205,0.0003,30]
[357228986,1743922751436,-3775.68764268,0.0003,30]
[357228987,1743922751461,-202.49832818,0.0003,120]
[357228988,1743922751488,-9775.72728959,0.0003,30]
[357228989,1743922751514,-5507.27724334,0.0003,60]
[357228990,1743922751541,-204.03621131,0.0003,120]
[357228991,1743922751568,-200.0,0.00030037,120]
[357228992,1743922751594,-189.63,0.000301,30]
[357228993,1743922751618,-250.0,0.00030137,30]
[357228994,1743922751643,-252.52,0.000305,30]
[357228995,1743922751668,-434.28,0.000305,30]
[357228996,1743922751695,-200.0,0.000306,120]
[357228997,1743922751719,-200.0,0.000307,120]
[357228998,1743922751744,-200.0,0.000307,120]
[357228999,1743922751769,-203.75883,0.000309,120]
[357229000,1743922751793,-201.96953,0.000309,120]
[357229001,1743922751817,-200.0,0.00030958,120]
[357229002,1743922751844,-5892.09367525,0.00031,120]
[357229003,1743922751870,-200.0,0.00031528,120]
[357229004,1743922751895,-200.0,0.000318,120]
[357229005,1743922751930,-200.0,0.00032,120]
[357229006,1743922751960,-1000.0,0.00032,120]
[357229007,1743922751987,-189.63,0.00032,30]
[357229008,1743922752013,-357.152,0.000325,120]
[357229009,1743922752039,-357.152,0.000325,120]
[357229010,1743922752065,-357.152,0.000325,120]
[357229011,1743922752091,-357.152,0.000325,120]
[357229012,1743922752116,-357.153,0.000325,120]
[357229013,1743922752141,-2666.90616785,0.000326,30]
[357229014,1743922752167,-252.52,0.000326,30]
[357229015,1743922752192,-434.28,0.000326,30]
[357229016,1743922752218,-500.0,0.00032876,120]
[357229017,1743922752244,-500.0,0.00032876,120]
[357229018,1743922752270,-548.09992049,0.00032876,120]
[357229019,1743922752295,-325.63691851,0.00032876,30]
[357229020,1743922752321,-199.8476352,0.00032877,120]
[357229021,1743922752346,-200.0,0.00033,120]
[357229022,1743922752371,-7000.0,0.00033,30]
[357229023,1743922752397,-870.68,0.00033,30]
[357229024,1743922752423,-200.0,0.00033301,120]
[357229025,1743922752448,-200.0,0.00034,120]
[357229026,1743922752473,-189.63,0.00034,30]
[357229027,1743922752500,-231.93961,0.000342,120]
[357229028,1743922752525,-610.56235271,0.00034276,60]
[357229029,1743922752550,-252.52,0.000343,30]
[357229030,1743922752575,-434.28,0.000343,30]
[357229031,1743922752601,-870.68,0.000349,30]